bitfinex-derivatives/quotes_BTCF0:USTF0_20250212
["timestamp","ask_amount","ask_price","bid_price","bid_amount"]
[1739355296143,0.2078574,96216.0,96209.0,0.2078718]
[1739355296443,0.207859,96215.0,96214.0,0.001]
[1739355296640,0.004,96216.0,96214.0,0.001]
[1739355296837,0.004,96216.0,96215.0,0.207859]
[1739355297038,0.3608,96227.0,96223.0,0.2078401]
[1739355297239,0.3608,96227.0,96224.0,0.0328]
[1739355297643,0.2078439,96222.0,96218.0,0.0306]
[1739355297835,0.3608,96227.0,96218.0,0.0306]
[1739355298045,0.37171471,96227.0,96218.0,0.0306]
[1739355298845,0.2078483,96220.0,96215.0,0.06812]
[1739355299743,0.08168698,96225.0,96213.0,0.0328]
[1739355299936,0.08168698,96223.0,96213.0,0.0328]
[1739355300141,0.001,96220.0,96215.0,0.001]
[1739355300650,0.2078579,96216.0,96215.0,0.001]
[1739355300848,0.2078579,96216.0,96213.0,0.0328]
[1739355301148,0.2078579,96216.0,96213.0,0.0338]
[1739355301352,0.2078592,96215.0,96213.0,0.0338]
[1739355302538,0.2098592,96215.0,96213.0,0.0338]
[1739355302945,0.2098592,96215.0,96213.0,0.0328]
[1739355304453,0.2108592,96215.0,96213.0,0.0338]
[1739355304851,0.207861,96214.0,96213.0,0.0338]
[1739355306149,0.001,96214.0,96213.0,0.0338]
[1739355306745,0.002,96214.0,96213.0,0.0338]
[1739355307053,0.003,96214.0,96213.0,0.0338]
[1739355307849,0.002,96214.0,96213.0,0.0338]
[1739355308558,0.2078336,96227.0,96217.0,0.2078539]
[1739355308747,0.2078336,96227.0,96224.0,0.3608]
[1739355308946,0.2078364,96226.0,96224.0,0.3608]
[1739355310455,0.2158364,96226.0,96224.0,0.3608]
[1739355311755,0.2208364,96226.0,96224.0,0.3608]
[1739355311947,0.2078448,96222.0,96218.0,0.09842]
[1739355312142,0.005,96226.0,96213.0,0.0328]
[1739355312350,0.2078371,96225.0,96224.0,0.001]
[1739355313049,0.2078517,96219.0,96213.0,0.10092]
[1739355313249,0.2078561,96217.0,96213.0,0.10092]
[1739355313449,0.2078561,96217.0,96213.0,0.0328]
[1739355313760,0.16337396,96223.0,96213.0,0.0328]
[1739355313951,0.2078602,96215.0,96213.0,0.0328]
[1739355315655,0.2078602,96215.0,96213.0,0.0338]
[1739355316655,0.2098602,96215.0,96213.0,0.0338]
[1739355317653,0.2078602,96215.0,96213.0,0.0338]
[1739355317854,0.2098602,96215.0,96213.0,0.0338]
[1739355319866,0.2078602,96215.0,96213.0,0.0338]
[1739355320159,0.2088602,96215.0,96213.0,0.0338]
[1739355320559,0.2108602,96215.0,96213.0,0.0338]
[1739355320963,0.21945887,96215.0,96213.0,0.0338]
[1739355321764,0.21945887,96215.0,96213.0,0.001]
[1739355322063,0.0309,96214.0,96213.0,0.001]
[1739355322652,0.0309,96214.0,96212.0,0.3608]
[1739355322855,0.2387609,96214.0,96213.0,0.001]
[1739355323555,0.33550205,96214.0,96213.0,0.001]
[1739355324768,0.2078781,96206.0,96205.0,0.00010443]
[1739355325163,0.2078868,96202.0,96200.0,0.1]
[1739355326763,0.2098868,96202.0,96200.0,0.1]
[1739355327273,0.2108868,96202.0,96200.0,0.1]
[1739355328265,0.2118868,96202.0,96200.0,0.1]
[1739355329069,0.22157733,96202.0,96200.0,0.1]
[1739355330574,0.58237733,96202.0,96200.0,0.1]
[1739355330865,0.58037733,96202.0,96200.0,0.1]
[1739355331069,0.2079107,96191.0,96190.0,0.0316]
[1739355332967,0.2079107,96191.0,96190.0,0.0326]
[1739355333170,0.2089107,96191.0,96190.0,0.0326]
[1739355333772,0.001,96191.0,96190.0,0.0326]
[1739355335069,0.001,96191.0,96190.0,0.0316]
[1739355335270,0.002,96191.0,96190.0,0.0326]
[1739355335463,0.002,96191.0,96190.0,0.3934]
[1739355335858,0.01140706,96191.0,96190.0,0.3934]
[1739355336057,0.001,96191.0,96190.0,0.3934]
[1739355336568,0.08168698,96200.0,96191.0,0.2079104]
[1739355336770,0.2078883,96202.0,96199.0,0.3608]
[1739355338271,0.2395712,96210.0,96199.0,0.3608]
[1739355338576,0.00015588,96211.0,96207.0,0.3608]
[1739355340669,0.00315588,96211.0,96207.0,0.3608]
[1739355340868,0.0140297,96211.0,96207.0,0.3608]
[1739355341089,0.0140297,96211.0,96208.0,0.032]
[1739355341776,0.0150297,96211.0,96208.0,0.032]
[1739355342582,0.0150297,96211.0,96208.0,0.033]
[1739355342876,0.2208983,96211.0,96208.0,0.033]
[1739355343478,0.2198983,96211.0,96208.0,0.033]
[1739355343978,0.2208983,96211.0,96208.0,0.033]
[1739355344981,0.2198983,96211.0,96208.0,0.033]
[1739355345185,0.0120297,96211.0,96208.0,0.033]
[1739355345381,0.2078705,96210.0,96208.0,0.033]
[1739355346872,0.2088705,96210.0,96208.0,0.033]
[1739355347792,0.2088705,96210.0,96208.0,0.032]
[1739355347988,0.2088705,96210.0,96208.0,0.033]
[1739355352089,0.2088705,96210.0,96208.0,0.001]
[1739355352589,0.207872,96209.0,96208.0,0.001]
[1739355353289,0.003,96210.0,96201.0,0.06812]
[1739355353490,0.2078845,96204.0,96201.0,0.06812]
[1739355353989,0.2078868,96203.0,96201.0,0.06812]
[1739355355386,0.2098868,96203.0,96201.0,0.06812]
[1739355355882,0.2088868,96203.0,96201.0,0.06912]
[1739355356393,0.2098868,96203.0,96201.0,0.06812]
[1739355356691,0.2098868,96203.0,96201.0,0.06912]
[1739355357994,0.2078868,96203.0,96201.0,0.06812]
[1739355358198,0.2088868,96203.0,96201.0,0.06912]
[1739355358593,0.2078868,96203.0,96201.0,0.06912]
[1739355358898,0.2098868,96203.0,96201.0,0.06912]
[1739355359199,0.2088868,96203.0,96201.0,0.06912]
[1739355359498,0.2088868,96203.0,96201.0,0.06812]
[1739355359796,0.2088868,96203.0,96201.0,0.06912]
[1739355360300,0.2088868,96203.0,96202.0,0.3608]
[1739355361288,0.2098868,96203.0,96202.0,0.5686871]
[1739355362199,0.2098868,96203.0,96202.0,0.5696871]
[1739355362899,0.2098868,96203.0,96202.0,0.2088871]
[1739355363200,0.2078868,96203.0,96202.0,0.2088871]
[1739355364194,0.2088868,96203.0,96202.0,0.2098871]
[1739355364702,0.2098868,96203.0,96202.0,0.2098871]
[1739355365198,0.2088868,96203.0,96202.0,0.2098871]
[1739355365396,0.2098868,96203.0,96202.0,0.2098871]
[1739355366004,0.2078868,96203.0,96202.0,0.2088871]
[1739355366389,0.2088868,96203.0,96202.0,0.5696871]
[1739355367503,0.001,96203.0,96202.0,0.001]
[1739355367906,0.208885,96203.0,96202.0,0.001]
[1739355368198,0.208885,96203.0,96199.0,0.2078931]
[1739355368403,0.208885,96203.0,96202.0,0.001]
[1739355369103,0.209885,96203.0,96200.0,0.3608]
[1739355369403,0.2078872,96202.0,96200.0,0.5686913]
[1739355371598,0.2088872,96202.0,96201.0,0.2078893]
[1739355373509,0.2078893,96201.0,96200.0,0.002]
[1739355373705,0.2726893,96201.0,96200.0,0.002]
[1739355374306,0.0648,96201.0,96197.0,0.3608]
[1739355374512,0.2078958,96198.0,96197.0,0.3608]
[1739355376009,0.2088958,96198.0,96197.0,0.3618]
[1739355376398,0.2098958,96198.0,96197.0,0.3618]
[1739355376911,0.2098958,96198.0,96197.0,0.5696979]
[1739355377512,0.2098958,96198.0,96197.0,0.5686979]
[1739355377810,0.2098958,96198.0,96197.0,0.5696979]
[1739355378007,0.2078958,96198.0,96197.0,0.5696979]
[1739355378311,0.2098958,96198.0,96197.0,0.5686979]
[1739355378505,0.2108958,96198.0,96197.0,0.5706979]
[1739355378709,0.2098958,96198.0,96197.0,0.5706979]
[1739355379212,0.2088958,96198.0,96197.0,0.5696979]
[1739355379413,0.2088958,96198.0,96197.0,0.3618]
[1739355380612,0.21941218,96198.0,96197.0,0.3618]
[1739355380919,0.22041218,96198.0,96197.0,0.3628]
[1739355381212,0.22141218,96198.0,96197.0,0.3628]
[1739355381607,0.21841218,96198.0,96197.0,0.3628]
[1739355381807,0.21941218,96198.0,96197.0,0.002]
[1739355382004,0.21941218,96198.0,96197.0,0.3628]
[1739355383612,0.21941218,96198.0,96197.0,0.002]
[1739355383809,0.2078986,96197.0,96185.0,0.6368036]
[1739355384114,0.08178423,96195.0,96185.0,0.42888]
[1739355384310,0.207911,96191.0,96186.0,0.2079213]
[1739355385619,0.2079195,96187.0,96186.0,0.002]
[1739355386816,0.3608,96192.0,96179.0,0.2079347]
[1739355387009,0.2079195,96187.0,96186.0,0.002]
[1739355387613,0.002,96191.0,96177.0,0.01995]
[1739355387614,0.2079304,96182.0,96177.0,0.01995]
[1739355388616,0.2079304,96182.0,96176.0,0.3608]
[1739355389325,0.2079304,96182.0,96176.0,0.5687429]
[1739355389513,0.2079304,96182.0,96176.0,0.5692629]
[1739355390114,0.2089304,96182.0,96176.0,0.5692629]
[1739355390323,0.2079331,96181.0,96176.0,0.5692629]
[1739355390521,0.2079331,96181.0,96176.0,0.5687429]
[1739355390825,0.2079331,96181.0,96179.0,0.2079359]
[1739355391025,0.001,96182.0,96181.0,0.2079325]
[1739355391227,0.2079272,96184.0,96183.0,0.2079282]
[1739355391617,0.21867159,96184.0,96183.0,0.2079282]
[1739355393725,0.31444655,96184.0,96183.0,0.2079282]
[1739355393923,0.31544655,96184.0,96183.0,0.2079282]
[1739355394429,0.31644655,96184.0,96183.0,0.2079282]
[1739355394627,0.31544655,96184.0,96183.0,0.2079282]
[1739355394819,0.31644655,96184.0,96183.0,0.2079282]
[1739355399335,0.10851935,96184.0,96177.0,0.033]
[1739355399541,0.2079294,96183.0,96179.0,0.2079368]
[1739355399729,0.2079317,96182.0,96179.0,0.2079368]
[1739355400831,0.2089317,96182.0,96179.0,0.2079368]
[1739355401540,0.2079317,96182.0,96179.0,0.2079368]
[1739355401844,0.2089317,96182.0,96179.0,0.2079368]
[1739355402643,0.2079348,96180.0,96179.0,0.2079368]
[1739355403345,0.001,96182.0,96181.0,0.2079326]
[1739355403547,0.001,96182.0,96180.0,0.2079337]
[1739355404146,0.2079298,96183.0,96180.0,0.2079337]
[1739355405041,0.2089307,96182.0,96180.0,0.2079337]
[1739355405351,0.2079326,96181.0,96180.0,0.2079337]
[1739355407345,0.30470976,96181.0,96180.0,0.2079337]
[1739355407854,0.30570976,96181.0,96180.0,0.2079337]
[1739355408441,0.207939,96178.0,96177.0,0.033]
[1739355408645,0.09777716,96181.0,96176.0,0.3608]
[1739355409946,0.2079412,96177.0,96176.0,0.3608]
[1739355410852,0.2079606,96168.0,96167.0,0.01995]
[1739355411248,0.2079653,96166.0,96164.0,0.3608]
[1739355413249,0.2089653,96166.0,96164.0,0.3608]
[1739355415158,0.21951453,96166.0,96164.0,0.5687673]
[1739355415362,0.09577716,96165.0,96164.0,0.5687673]
[1739355416564,0.09677716,96165.0,96164.0,0.5687673]
[1739355419759,0.09677716,96165.0,96161.0,0.01995]
[1739355419962,0.0644,96164.0,96161.0,0.01995]
[1739355420461,0.207984,96157.0,96156.0,0.0015597]
[1739355422862,0.208984,96157.0,96156.0,0.0015597]
[1739355423061,0.209984,96157.0,96156.0,0.0015597]
[1739355423262,0.30576116,96157.0,96156.0,0.0015597]
[1739355423566,0.30476116,96157.0,96156.0,0.0015597]
[1739355424166,0.09677716,96157.0,96156.0,0.0015597]
[1739355424676,0.09677716,96157.0,96156.0,0.0318597]
[1739355426259,0.001,96157.0,96156.0,0.0318597]
[1739355426458,0.001,96157.0,96156.0,0.2398458]
[1739355427167,0.001,96157.0,96156.0,0.3079258]
[1739355428372,0.2079693,96164.0,96159.0,0.2079776]
[1739355428669,0.2079693,96164.0,96163.0,0.3608]
[1739355430057,0.2089693,96164.0,96163.0,0.3608]
[1739355430258,0.001,96164.0,96163.0,0.3608]
[1739355431061,0.001,96164.0,96163.0,0.392]
[1739355431868,0.0107052,96166.0,96164.0,0.2079688]
[1739355432263,0.09579193,96165.0,96164.0,0.2079688]
[1739355433579,0.09679193,96165.0,96164.0,0.2079688]
[1739355434877,0.2079732,96162.0,96161.0,0.06808]
[1739355435669,0.001,96165.0,96157.0,4.827e-05]
[1739355435874,0.2079818,96158.0,96157.0,4.827e-05]
[1739355438667,0.2099818,96158.0,96157.0,4.827e-05]
[1739355442180,0.2079818,96158.0,96157.0,4.827e-05]
[1739355442391,0.2099818,96158.0,96157.0,4.827e-05]
[1739355442677,0.2109818,96158.0,96157.0,4.827e-05]
[1739355442879,0.30678223,96158.0,96157.0,4.827e-05]
[1739355444071,0.30578223,96158.0,96157.0,4.827e-05]
[1739355444975,0.30678223,96158.0,96157.0,4.827e-05]
[1739355445575,0.30578223,96158.0,96157.0,4.827e-05]
[1739355446576,0.30378223,96158.0,96157.0,4.827e-05]
[1739355446879,0.30578223,96158.0,96157.0,4.827e-05]
[1739355448279,0.30778223,96158.0,96157.0,4.827e-05]
[1739355448773,0.30678223,96158.0,96157.0,4.827e-05]
[1739355448976,0.30578223,96158.0,96157.0,4.827e-05]
[1739355449180,0.30678223,96158.0,96157.0,4.827e-05]
[1739355451680,0.2109818,96158.0,96157.0,4.827e-05]
[1739355452880,0.2099818,96158.0,96157.0,4.827e-05]
[1739355453781,0.2109818,96158.0,96157.0,4.827e-05]
[1739355456682,0.2119818,96158.0,96157.0,4.827e-05]
[1739355458685,0.2099818,96158.0,96157.0,4.827e-05]
[1739355459490,0.2099818,96158.0,96140.0,0.47560423]
[1739355459491,0.2080154,96143.0,96140.0,0.39382]
[1739355459784,0.08178423,96150.0,96141.0,0.06808]
[1739355459986,0.2080067,96147.0,96144.0,0.2080115]
[1739355460691,0.08178423,96154.0,96140.0,0.39386]
[1739355460987,0.2080095,96146.0,96142.0,0.2080152]
[1739355461686,0.001,96143.0,96142.0,0.2080152]
[1739355462390,0.2080141,96144.0,96142.0,0.2080152]
[1739355463284,0.001,96143.0,96142.0,0.2080152]
[1739355464084,0.2080166,96142.0,96140.0,0.3939]
[1739355464282,0.2080166,96142.0,96140.0,0.3933]
[1739355465885,0.2090166,96142.0,96140.0,0.3933]
[1739355466286,0.2090166,96142.0,96140.0,0.6013203]
[1739355467281,0.001,96142.0,96140.0,0.6013203]
[1739355467486,0.09580289,96141.0,96140.0,0.6013203]
[1739355469383,0.09680289,96141.0,96140.0,0.6013203]
[1739355470695,0.001,96141.0,96140.0,0.6013203]
[1739355472094,0.2090188,96141.0,96140.0,0.5688203]
[1739355473792,0.2080188,96141.0,96140.0,0.5688203]
[1739355473993,0.2090188,96141.0,96140.0,0.5688203]
[1739355477207,0.001,96141.0,96140.0,0.5688203]
[1739355478794,0.2080103,96145.0,96144.0,0.2080123]
[1739355479406,0.01051381,96146.0,96145.0,0.2080101]
[1739355479601,0.2080001,96150.0,96149.0,0.2080014]
[1739355480902,0.0639,96157.0,96140.0,0.44314423]
[1739355481093,0.08178423,96150.0,96149.0,0.2079993]
[1739355481298,0.2079955,96152.0,96149.0,0.2079993]
[1739355481697,0.2079955,96152.0,96140.0,0.44310423]
[1739355481899,0.2079955,96152.0,96151.0,0.2079971]
[1739355482408,0.2099955,96152.0,96151.0,0.2079971]
[1739355483004,0.2079955,96152.0,96151.0,0.2079971]
[1739355483207,0.2099955,96152.0,96151.0,0.2079971]
[1739355483704,0.2079955,96152.0,96151.0,0.2079971]
[1739355483909,0.2089955,96152.0,96151.0,0.2079971]
[1739355485305,0.2109955,96152.0,96151.0,0.2079971]
[1739355486005,0.2099955,96152.0,96151.0,0.2079971]
[1739355486196,0.2129955,96152.0,96151.0,0.2079971]
[1739355486395,0.2139955,96152.0,96151.0,0.2079971]
[1739355486602,0.2109955,96152.0,96151.0,0.2079971]
[1739355486797,0.30980371,96152.0,96151.0,0.2079971]
[1739355487507,0.30980371,96152.0,96145.0,0.3608]
[1739355488494,0.09880821,96152.0,96145.0,0.3608]
[1739355488703,0.207999,96151.0,96145.0,0.3608]
[1739355489401,0.30380721,96151.0,96145.0,0.3608]
[1739355491911,0.30480721,96151.0,96145.0,0.3608]
[1739355492704,0.09580821,96150.0,96145.0,0.3608]
[1739355493307,0.09580821,96150.0,96145.0,0.5688095]
[1739355495115,0.09680821,96150.0,96145.0,0.5688095]
[1739355496709,0.09580821,96150.0,96145.0,0.5688095]
[1739355496914,0.09580821,96150.0,96130.0,0.08178423]
[1739355497220,0.08178423,96144.0,96138.0,0.2080237]
[1739355497404,0.0312,96143.0,96138.0,0.2080237]
[1739355497607,0.0312,96143.0,96139.0,0.2080223]
[1739355498513,0.0322,96143.0,96139.0,0.2080223]
[1739355498820,0.0332,96143.0,96139.0,0.2080223]
[1739355499207,0.0322,96143.0,96139.0,0.2080223]
[1739355499417,0.0322,96143.0,96139.0,0.2110223]
[1739355499817,0.04281632,96143.0,96139.0,0.2110223]
[1739355500318,0.25083152,96143.0,96139.0,0.2110223]
[1739355500717,0.04281632,96143.0,96139.0,0.2110223]
[1739355500911,0.2080171,96142.0,96139.0,0.2110223]
[1739355501513,0.2080191,96141.0,96140.0,0.2080206]
[1739355502722,0.2090191,96141.0,96140.0,0.2080206]
[1739355504225,0.2090191,96141.0,96140.0,0.2100206]
[1739355507830,0.2080191,96141.0,96140.0,0.2100206]
[1739355508031,0.2090191,96141.0,96140.0,0.2100206]
[1739355508633,0.2100191,96141.0,96140.0,0.2100206]
[1739355509134,0.2090191,96141.0,96140.0,0.2100206]
[1739355509735,0.30482731,96141.0,96140.0,0.2100206]
[1739355515031,0.30382731,96141.0,96140.0,0.2090206]
[1739355515231,0.30482731,96141.0,96140.0,0.2090206]
[1739355516643,0.30482731,96141.0,96140.0,0.2080206]
[1739355516936,0.30482731,96141.0,96140.0,0.2100206]
[1739355517444,0.30482731,96141.0,96140.0,0.2080206]
[1739355517638,0.30482731,96141.0,96140.0,0.2090206]
[1739355518529,0.30382731,96141.0,96140.0,0.2090206]
[1739355519738,0.30382731,96141.0,96140.0,0.2080206]
[1739355519936,0.30482731,96141.0,96140.0,0.2100206]
[1739355520538,0.30582731,96141.0,96140.0,0.2100206]
[1739355521139,0.30482731,96141.0,96140.0,0.2100206]
[1739355523135,0.30482731,96141.0,96140.0,0.2090206]
[1739355523736,0.30482731,96141.0,96140.0,0.2080206]
[1739355524043,0.30482731,96141.0,96140.0,0.2100206]
[1739355525540,0.30482731,96141.0,96140.0,0.002]
[1739355526230,0.30482701,96141.0,96140.0,0.002]
[1739355526435,0.30582701,96141.0,96140.0,0.002]
[1739355526831,0.09680821,96141.0,96138.0,0.36144]
[1739355527045,0.30482701,96141.0,96140.0,0.001]
[1739355527947,0.30382701,96141.0,96140.0,0.001]
[1739355529546,0.2080231,96139.0,96138.0,0.3628]
[1739355530941,0.2080231,96139.0,96138.0,0.3608]
[1739355531443,0.2090231,96139.0,96138.0,0.3608]
[1739355531759,0.001,96139.0,96138.0,0.5688252]
[1739355532741,0.01061632,96143.0,96138.0,0.3608]
[1739355532941,0.2080059,96147.0,96139.0,0.0315]
[1739355533141,0.2080059,96147.0,96145.0,0.2080097]
[1739355533342,0.21864461,96147.0,96145.0,0.2080097]
[1739355534547,0.2080079,96146.0,96145.0,0.2080097]
[1739355535850,0.30382413,96146.0,96145.0,0.2080097]
[1739355536745,0.30682413,96146.0,96145.0,0.2080097]
[1739355537942,0.30982413,96146.0,96145.0,0.2080097]
[1739355538753,0.30782413,96146.0,96145.0,0.2080097]
[1739355539155,0.30582413,96146.0,96145.0,0.2080097]
[1739355539654,0.30482413,96146.0,96145.0,0.2080097]
[1739355539842,0.30782413,96146.0,96145.0,0.2080097]
[1739355540753,0.30982413,96146.0,96145.0,0.2080097]
[1739355541549,0.31082413,96146.0,96145.0,0.2080097]
[1739355543256,0.10281623,96146.0,96145.0,0.2080097]
[1739355543653,0.09981623,96146.0,96145.0,0.2080097]
[1739355543854,0.10281623,96146.0,96145.0,0.2080097]
[1739355544549,0.09881623,96146.0,96145.0,0.2080097]
[1739355544755,0.10181623,96146.0,96145.0,0.2080097]
[1739355545250,0.09881623,96146.0,96145.0,0.2080097]
[1739355545449,0.10281623,96146.0,96145.0,0.2080097]
[1739355546550,0.09981623,96146.0,96145.0,0.2080097]
[1739355546857,0.09881623,96146.0,96145.0,0.2080097]
[1739355547546,0.09581623,96146.0,96145.0,0.2080097]
[1739355547751,0.09981623,96146.0,96145.0,0.2080097]
[1739355548150,0.10281623,96146.0,96145.0,0.2080097]
[1739355548756,0.09681623,96146.0,96145.0,0.2090097]
[1739355549352,0.09881623,96146.0,96145.0,0.2090097]
[1739355550757,0.10181623,96146.0,96145.0,0.2080097]
[1739355551061,0.006,96146.0,96145.0,0.2080097]
[1739355551457,0.003,96146.0,96139.0,0.0315]
[1739355551658,0.006,96146.0,96145.0,0.2080101]
[1739355556862,0.006,96146.0,96145.0,0.9296101]
[1739355559755,0.09581623,96153.0,96152.0,0.2079949]
[1739355560064,0.09581623,96153.0,96152.0,0.2760749]
[1739355560869,0.10381623,96153.0,96152.0,0.2760749]
[1739355561461,0.10781623,96153.0,96152.0,0.2760749]
[1739355562270,0.012,96153.0,96152.0,0.2760749]
[1739355562871,0.012,96153.0,96152.0,0.6368749]
[1739355565474,0.012,96153.0,96152.0,0.6568049]
[1739355569070,0.012,96153.0,96152.0,0.2960049]
[1739355569272,0.012,96153.0,96152.0,0.6568049]
[1739355569961,0.012,96153.0,96152.0,0.2960049]
[1739355570158,0.012,96153.0,96152.0,0.6568049]
[1739355570966,0.012,96153.0,96152.0,0.2960049]
[1739355571171,0.012,96153.0,96152.0,0.6568049]
[1739355571371,0.012,96153.0,96152.0,0.2960049]
[1739355571777,0.012,96153.0,96152.0,0.6568049]
[1739355571971,0.10779334,96153.0,96152.0,0.2960049]
[1739355572165,0.10779334,96153.0,96152.0,0.6568049]
[1739355573069,0.10779334,96153.0,96152.0,0.5887249]
[1739355573271,0.17159334,96153.0,96152.0,0.5687949]
[1739355573477,0.17159334,96153.0,96152.0,0.2079949]
[1739355574170,0.2080013,96149.0,96146.0,0.2760469]
[1739355574475,0.033,96148.0,96146.0,0.2760469]
[1739355574864,0.033,96148.0,96146.0,0.2080069]
[1739355576174,0.036,96148.0,96146.0,0.2080069]
[1739355576376,0.2440051,96148.0,96146.0,0.2080069]
[1739355576979,0.2470051,96148.0,96146.0,0.2080069]
[1739355577179,0.039,96148.0,96143.0,0.3608]
[1739355577378,0.2080112,96145.0,96143.0,0.3608]
[1739355578366,0.2080112,96145.0,96143.0,0.568814]
[1739355578563,0.2090112,96145.0,96143.0,0.568814]
[1739355579577,0.2080112,96145.0,96143.0,0.568814]
[1739355579777,0.2090112,96145.0,96143.0,0.568814]
[1739355580669,0.2110112,96145.0,96143.0,0.568814]
[1739355581374,0.2120112,96145.0,96143.0,0.568814]
[1739355582479,0.2110112,96145.0,96143.0,0.568814]
[1739355582680,0.09581055,96144.0,96143.0,0.568814]
[1739355585177,0.09981055,96144.0,96143.0,0.568814]
[1739355585379,0.10281055,96144.0,96143.0,0.568814]
[1739355586189,0.11307483,96144.0,96143.0,0.568814]
[1739355586378,0.10907483,96144.0,96143.0,0.568814]
[1739355586685,0.11307483,96144.0,96143.0,0.568814]
[1739355588185,0.10907483,96144.0,96143.0,0.568814]
[1739355588488,0.10707483,96144.0,96143.0,0.568814]
[1739355588786,0.01126428,96144.0,96143.0,0.568814]
[1739355588990,0.01226428,96144.0,96143.0,0.568814]
[1739355589179,0.01426428,96144.0,96143.0,0.568814]
[1739355590886,0.01426428,96144.0,96143.0,0.208014]
[1739355591280,0.01526428,96144.0,96143.0,0.208014]
[1739355591683,0.01326428,96144.0,96143.0,0.208014]
[1739355591988,0.01226428,96144.0,96143.0,0.208014]
[1739355592179,0.01426428,96144.0,96143.0,0.208014]
[1739355595694,0.01326428,96144.0,96143.0,0.208014]
[1739355597486,0.01126428,96144.0,96143.0,0.208014]
[1739355597689,0.01326428,96144.0,96143.0,0.208014]
[1739355598980,0.01226428,96144.0,96143.0,0.208014]
[1739355599182,0.01026428,96144.0,96143.0,0.208014]
[1739355599378,0.001,96144.0,96143.0,0.208014]
[1739355600687,0.003,96144.0,96143.0,0.208014]
[1739355600888,0.004,96144.0,96143.0,0.208014]
[1739355601290,0.003,96144.0,96143.0,0.208014]
[1739355604798,0.002,96144.0,96143.0,0.208014]
[1739355605093,0.001,96144.0,96143.0,0.208014]
[1739355605704,0.002,96144.0,96143.0,0.208014]
[1739355607700,0.003,96144.0,96143.0,0.208014]
[1739355610898,0.001,96144.0,96143.0,0.208014]
[1739355611105,0.002,96144.0,96143.0,0.208014]
[1739355611997,0.003,96144.0,96143.0,0.208014]
[1739355614802,0.001,96144.0,96143.0,0.208014]
[1739355615013,0.003,96144.0,96143.0,0.208014]
[1739355615203,0.002,96144.0,96143.0,0.208014]
[1739355615405,0.003,96144.0,96143.0,0.208014]
[1739355617003,0.002,96144.0,96143.0,0.208014]
[1739355617197,0.003,96144.0,96143.0,0.208014]
[1739355620897,0.002,96144.0,96143.0,0.208014]
[1739355621100,0.003,96144.0,96143.0,0.208014]
[1739355624204,0.00156027,96164.0,96143.0,0.208014]
[1739355624205,0.00156027,96164.0,96162.0,0.2079725]
[1739355624404,0.00156027,96164.0,96163.0,0.30354086]
[1739355624606,0.00156027,96164.0,96163.0,0.33674086]
[1739355625109,0.06690439,96174.0,96163.0,0.33674086]
[1739355625305,0.207916,96189.0,96173.0,0.3608]
[1739355625615,0.207916,96189.0,96182.0,0.3608]
[1739355625808,0.2712003,96196.0,96182.0,0.3608]
[1739355626106,0.0633,96196.0,96183.0,0.0332]
[1739355626318,0.207904,96194.0,96189.0,0.2079137]
[1739355626705,0.207904,96194.0,96184.0,0.06804]
[1739355626907,0.28968823,96194.0,96190.0,0.2079114]
[1739355627109,0.207904,96194.0,96190.0,0.2079114]
[1739355627702,0.213904,96194.0,96190.0,0.2079114]
[1739355627902,0.222904,96194.0,96190.0,0.2079114]
[1739355628308,0.223904,96194.0,96190.0,0.2079114]
[1739355628506,0.214904,96194.0,96190.0,0.2079114]
[1739355628706,0.228904,96194.0,96190.0,0.2079114]
[1739355629107,0.2079065,96193.0,96190.0,0.2079114]
[1739355630205,0.2219065,96193.0,96190.0,0.2079114]
[1739355631615,0.2289065,96193.0,96190.0,0.2079114]
[1739355632113,0.2289065,96193.0,96184.0,0.06804]
[1739355632114,0.2079117,96191.0,96185.0,0.2079226]
[1739355632314,0.2079117,96191.0,96186.0,0.2079196]
[1739355632813,0.2079117,96191.0,96184.0,0.06804]
[1739355633109,0.2079117,96191.0,96187.0,0.2079178]
[1739355633314,0.2179117,96191.0,96187.0,0.2079178]
[1739355634114,0.2219117,96191.0,96187.0,0.2079178]
[1739355634608,0.2079128,96190.0,96187.0,0.2079178]
[1739355634813,0.018,96191.0,96187.0,0.2079178]
[1739355635210,0.018,96191.0,96184.0,0.06804]
[1739355635411,0.018,96191.0,96183.0,0.0332]
[1739355635611,0.3608,96188.0,96184.0,0.06804]
[1739355636509,0.207923,96185.0,96184.0,0.06804]
[1739355636910,0.3608,96188.0,96176.0,0.207941]
[1739355637217,0.2079324,96181.0,96170.0,0.20951514]
[1739355637528,0.3608,96180.0,96170.0,0.00155984]
[1739355637712,0.3914,96180.0,96169.0,0.06804]
[1739355639211,0.3914,96180.0,96163.0,0.20797]
[1739355639416,0.3914,96180.0,96166.0,0.06804]
[1739355639608,0.3974,96180.0,96166.0,0.06804]
[1739355640016,0.4024,96180.0,96166.0,0.06804]
[1739355640414,0.4004,96180.0,96166.0,0.06804]
[1739355640615,0.4064,96180.0,96166.0,0.06804]
[1739355641016,0.41612413,96180.0,96166.0,0.06804]
[1739355641218,0.41512413,96180.0,96166.0,0.06804]
[1739355641720,0.41612413,96180.0,96166.0,0.06804]
[1739355642122,0.41612413,96180.0,96170.0,0.3608]
[1739355642418,0.38552413,96180.0,96170.0,0.3608]
[1739355642822,0.38952413,96180.0,96170.0,0.3608]
[1739355643122,0.38952413,96180.0,96171.0,0.3608]
[1739355644514,0.38352413,96180.0,96171.0,0.3608]
[1739355646022,0.37752413,96180.0,96171.0,0.3608]
[1739355646215,0.38352413,96180.0,96171.0,0.3608]
[1739355646416,0.38752413,96180.0,96171.0,0.3608]
[1739355646919,0.38952413,96180.0,96171.0,0.3608]
[1739355648014,0.38952413,96180.0,96173.0,0.2079481]
[1739355649928,0.38952413,96180.0,96171.0,0.3608]
[1739355651229,0.38952413,96180.0,96176.0,0.2079417]
[1739355652426,0.38352413,96180.0,96176.0,0.2079417]
[1739355652627,0.38952413,96180.0,96176.0,0.2079417]
[1739355658725,0.38952413,96180.0,96171.0,0.3608]
[1739355658923,0.38952413,96180.0,96171.0,0.5687523]
[1739355660232,0.38552413,96180.0,96171.0,0.5687523]
[1739355660424,0.37952413,96180.0,96171.0,0.5687523]
[1739355660624,0.41482413,96180.0,96171.0,0.5687523]
[1739355660934,0.62275813,96180.0,96171.0,0.5687523]
[1739355661825,0.62175813,96180.0,96171.0,0.5687523]
[1739355662026,0.61775813,96180.0,96171.0,0.5687523]